Cogmind - Beta 13 @@@ ROGUE MODE // 2024.04.22 @ 17:52:11 Player: Oldman Pu Result: Core destroyed Performance ------------- Evolutions (2) 1000 Regions Visited (3) 600 Robots Destroyed (83) 415 Value Destroyed (2152) 2152 Prototype IDs (4) 80 Alien Tech Used (0) 0 Bonus (250) 250 TOTAL SCORE: 4497 Bonus ------- High Alert Combat Kills 250 Cogmind --------- Core Integrity 0/550 Matter 230/300 Energy 100/100 System Corruption 0% Temperature Critical (687) Movement Core (350) Ox6 Location -8/Materials Parts ------- > --- POWER (2) -------- (None) > --- PROPULSION (2) --- (None) > --- UTILITY (4) ------ Cryofiber Web Large Storage Unit > --- WEAPON (3) ------- (None) > --- INVENTORY (15) --- Wheel Armored Wheel Improved Heat Sink Improved Heat Sink Large Storage Unit High-capacity Battery (250) Hardlight Generator Improved Shield Generator Pulse Rifle Heavy Particle Gun Heavy Particle Cannon Heavy Particle Cannon Minigun Minigun Peak State ------------ > --- POWER ------------ Light Nuclear Core Light Nuclear Core > --- PROPULSION ------- Xenon Bombardment Thruster Xenon Bombardment Thruster > --- UTILITY ---------- Cryofiber Web Improved Heat Sink Large Storage Unit Hardened Medium Armor Plating > --- WEAPON ----------- Advanced Beam Cannon Heavy Particle Cannon Heavy Particle Cannon > --- INVENTORY -------- Armored Wheel Improved Heat Sink Improved Heat Sink Improved Heat Sink High-capacity Battery Advanced Targeting Computer Hardlight Generator Improved Shield Generator Pulse Rifle Pulse Rifle Heavy Particle Gun Heavy Particle Gun Advanced Beam Cannon Heavy Assault Rifle Assault Cannon [Rating: 37] Favorites ----------- Power Light Nuclear Core Engine Improved Ion Engine Power Core Light Nuclear Core Propulsion Wheel Treads Spiked Treads Wheel Wheel Flight Unit Xenon Bombardment Thruster Utility Improved Heat Sink Device Improved Heat Sink Storage Large Storage Unit Processor Advanced Targeting Computer Protection Propulsion Shielding Weapon Pulse Rifle Energy Gun Pulse Rifle Energy Cannon Advanced Beam Cannon Ballistic Gun Light Assault Rifle Ballistic Cannon Assault Cannon Special Weapon Mining Laser Build | -11 -10 -10 -8 ------- Run | Yrd Mat Sub Mat Slots Evolved 4 | . . . 4 Power 1 | . . . 1 Propulsion . | . . . . Utility 2 | . . . 2 Weapon 1 | . . . 1 Parts Attached 90 | 6 12 7 65 Power 18 | 1 1 2 14 Engine 9 | 1 . 2 6 Core 9 | . 1 . 8 Reactor . | . . . . Propulsion 21 | 2 2 2 15 Treads 1 | . . 1 . Leg . | . . . . Wheel 18 | 2 2 1 13 Hover . | . . . . Flight 2 | . . . 2 Utility 22 | 1 5 . 16 Device 9 | . 1 . 8 Storage 8 | 1 3 . 4 Processor 1 | . . . 1 Hackware . | . . . . Protection 4 | . 1 . 3 Artifact . | . . . . Weapon 29 | 2 4 3 20 Energy Gun 14 | 1 . 1 12 Energy Cannon 7 | . 1 1 5 Ballistic Gun 6 | 1 2 1 2 Ballistic Cannon 1 | . . . 1 Launcher . | . . . . Special Weapon 1 | . 1 . . Impact Weapon . | . . . . Slashing Weapon . | . . . . Piercing Weapon . | . . . . Special Melee Weapon . | . . . . Unidentified Prototypes 2 | . . . 2 Parts Lost 28 | . 5 5 18 Power 6 | . 1 1 4 Propulsion 7 | . 1 2 4 Utility 7 | . 1 1 5 Weapon 8 | . 2 1 5 Highest Loss Streak 10 | . 2 4 10 To Critical Strikes . | . . . . Average Slot Usage (%) 96 | . 98 92 94 Engine 4 | . . 4 6 Core 10 | . 13 8 8 Wheel 21 | . 27 21 16 Device 10 | . 3 . 17 Storage 12 | . 14 14 10 Protection 7 | . 9 11 5 Energy Gun 8 | . 1 1 14 Energy Cannon 7 | . 4 11 7 Ballistic Gun 10 | . 18 14 3 Special Weapon 1 | . 2 . . Naked Turns . | . . . . Heaviest Build 88 | 12 88 28 56 Greatest Support 32 | 26 26 20 32 Greatest Overweight (x) 18 | 1 8 4 18 Average Overweight (x) 1 | . . 1 1 Largest Inventory Capacity 25 | 8 25 10 15 Average Capacity 12 | 6 11 10 14 Most Carried 15 | . 10 10 15 Average Carried 10 | . 6 9 13 Final Capacity 15 | 8 10 10 15 Final Carried 14 | . 10 10 14 Class Distribution -------------------- 42% | Scavenger-Mutant 20% | Scavenger-Tank 19% | Tank 9% | Gunner 6% | Mutant Dominant Class ---------------- Scavenger-Mutant | -10/Materials Scavenger-Mutant | -10/Subcaves Scavenger-Tank | -8/Materials Resources | -11 -10 -10 -8 ----------- Run | Yrd Mat Sub Mat Matter Collected 1596 | 81 562 137 816 Remotely . | . . . . Salvage Created 3075 | . 542 207 2326 Parts 179 | . 36 17 126 Haulers Intercepted 8 | . 2 . 6 Recyclers Shooed 2 | . . . 2 Parts Field Recycled . | . . . . Retrieved Matter . | . . . . Parts Self-Destructed 10 | . . 10 . Prevented . | . . . . Kills | -11 -10 -10 -8 ------- Run | Yrd Mat Sub Mat Combat Hostiles Destroyed 56 | . 9 7 40 Guns 36 | . 7 1 28 Cannons 19 | . 2 6 11 Classes Destroyed 13 | . 5 1 7 Worker 5 | . 2 . 3 Builder 1 | . . . 1 Hauler 8 | . 2 . 6 Recycler 6 | . . . 6 Operator 1 | . . . 1 Watcher 6 | . 2 . 4 Swarmer 19 | . 2 3 14 Grunt 24 | . 7 . 17 Duelist 1 | . . . 1 Sentry 6 | . . . 6 Hunter 1 | . . . 1 Heavy 1 | . . . 1 Subdweller 4 | . . 4 . Best Kill Streak 9 | . 3 3 9 Combat Bots Only 6 | . 3 3 6 Max Kills in Single Turn 2 | . 2 1 2 Gunslinging 1 | . 1 . . Exploded . | . . . . Melee . | . . . . Uniques/NPCs Destroyed . | . . . . Combat | -11 -10 -10 -8 -------- Run | Yrd Mat Sub Mat Hostile Shots Fired 308 | . 57 30 221 Missed 75 | . 17 8 50 Damage Taken 3925 | . 526 545 2854 Core 780 | . 97 88 595 Absorbed by Shields 126 | . . . 126 Redirected to Shielding 159 | . 9 42 108 Core Remaining (%) 63 | 100 . 26 . Volleys Fired 227 | . 62 29 136 Largest 3 | . 2 2 3 Hottest 218 | . 120 110 218 Shots Fired 529 | . 107 55 367 Gun 384 | . 98 29 257 Cannon 136 | . . 26 110 Launcher . | . . . . Special 9 | . 9 . . Kinetic 192 | . 85 29 78 Thermal 337 | . 22 26 289 Explosive . | . . . . Electromagnetic . | . . . . Robot Hit Streak 23 | . 11 16 23 Robot Miss Streak 4 | . 4 2 4 Penetration Max . | . . . . Secondary Targets 5 | . 1 . 4 Max Gunslinging Chain 1 | . 1 . 1 Shots Hit Robots 305 | . 64 28 213 Core Hits 131 | . 31 12 88 Critical Kills 1 | . . . 1 Critical Parts Destroyed 1 | . 1 . . Critical Strikes 13 | . 2 . 11 Burn 9 | . 1 . 8 Meltdown 1 | . . . 1 Destroy 1 | . 1 . . Blast 2 | . . . 2 Melee Attacks . | . . . . Impact . | . . . . Slashing . | . . . . Piercing . | . . . . Sneak Attacks . | . . . . Combat Hostiles . | . . . . Follow-up Attacks . | . . . . Damage Inflicted 5599 | . 661 537 4401 Guns 3488 | . 565 229 2694 Cannons 1779 | . . 308 1471 Explosions 236 | . . . 236 Melee . | . . . . Ramming . | . . . . Kinetic 1588 | . 466 229 893 Thermal 4011 | . 195 308 3508 Explosive . | . . . . Electromagnetic . | . . . . Impact . | . . . . Slashing . | . . . . Piercing . | . . . . Highest Corruption 1 | . 1 1 . Average Corruption 1 | . 1 1 . Corruption Purged . | . . . . Corruption Blocked . | . . . . Effects 9 | . 7 2 . Message Errors 1 | . 1 . . Matter Fused 3 | . 1 2 . Heat Flow Errors 2 | . 2 . . Energy Discharges 2 | . 2 . . Data Loss (major) 1 | . 1 . . Overload Shots . | . . . . Overflow Damage 159 | . . . 159 Projectiles 5 | . . . 5 Explosions 154 | . . . 154 Melee . | . . . . Knockbacks 5 | . . . 5 Impact . | . . . . Kinetic 4 | . . . 4 Secondary 1 | . . . 1 Self-Inflicted Damage 81 | . . . 81 Shots 1 | . . . 1 Rammed . | . . . . Targets Rammed . | . . . . Kicked . | . . . . Crushed . | . . . . Highest Temperature 792 | . 194 10 792 Average Temperature 139 | . 46 3 172 Received Heat Transfer 1293 | . 249 39 1005 Effects 17 | . . . 17 Shutdowns 3 | . . . 3 Energy Bleed 2 | . . . 2 Interference 2 | . . . 2 Matter Decay 1 | . . . 1 Short Circuit 2 | . . . 2 Damage (minor) 2 | . . . 2 Damage (major) 3 | . . . 3 Damage (core) 2 | . . . 2 Siege Activations . | . . . . Robots Corrupted . | . . . . Combat Hostiles . | . . . . Parts Fried . | . . . . Impact Corruptions . | . . . . Robots Melted 2 | . . . 2 Combat Hostiles 1 | . . . 1 Parts Melted 18 | . . . 18 Heat Transferred 8111 | . 570 555 6986 Parts Sabotaged . | . . . . Parts Stolen . | . . . . Parts Stripped . | . . . . Power Chain Reactions . | . . . . Alert | -11 -10 -10 -8 ------- Run | Yrd Mat Sub Mat Peak Influence 869 | . 187 . 869 Initial . | . . . . Average 236 | . 48 . 379 Maximum Alert Level 3 | . . . 3 Low Security (%) 62 | 100 100 . 33 Level 1 9 | . . . 16 Level 2 16 | . . . 29 Level 3 12 | . . . 21 Level 4 . | . . . . Level 5 . | . . . . High Security . | . . . . Max Security . | . . . . Squads Dispatched 11 | . 3 . 8 Investigation 6 | . 2 . 4 Extermination . | . . . . Reinforcement 3 | . 1 . 2 Assault 2 | . . . 2 Garrison . | . . . . Intercept . | . . . . Searches Triggered . | . . . . Construction Impeded . | . . . . Haulers Reinforced . | . . . . Active Scanning Responses . | . . . . Cargo Convoy Interrupts . | . . . . Stealth | -11 -10 -10 -8 --------- Run | Yrd Mat Sub Mat Distress Signals 2 | . . . 2 Communications Jammed . | . . . . Distress Signals . | . . . . Times Spotted 94 | . 16 8 70 Peak Tracking Total 13 | . 3 3 13 Tactical Retreats 4 | . 1 . 3 Traps | -11 -10 -10 -8 ------- Run | Yrd Mat Sub Mat Traps Triggered 5 | . 3 . 2 Indirectly . | . . . . Trap Hack Attempts . | . . . . Triggered . | . . . . Disarmed . | . . . . Reprogrammed . | . . . . Reused . | . . . . Traps Extracted . | . . . . Installed . | . . . . Triggered . | . . . . Machines | -11 -10 -10 -8 ---------- Run | Yrd Mat Sub Mat Machines Disabled 9 | . . . 9 Max in Single Turn 3 | . . . 3 Machines Repaired . | . . . . Machines Dismantled . | . . . . Machines Sabotaged . | . . . . Overloaded Fab Kills . | . . . . Hacking | -11 -10 -10 -8 --------- Run | Yrd Mat Sub Mat Machines Accessed 10 | . 5 . 5 Terminals 8 | . 5 . 3 Fabricators . | . . . . Repair Stations 1 | . . . 1 Recycling Units . | . . . . Scanalyzers 1 | . . . 1 Garrison Access . | . . . . Total Hacks 38 | . 14 . 24 Successful 25 | . 8 . 17 Failed 13 | . 6 . 7 Catastrophic 3 | . 2 . 1 Database Lockouts . | . . . . Manual . | . . . . Terminals 20 | . 14 . 6 Fabricators . | . . . . Repair Stations 3 | . . . 3 Recycling Units . | . . . . Scanalyzers 15 | . . . 15 Garrison Access . | . . . . Terminal Hacks 10 | . 8 . 2 Record 2 | . 2 . . Prototype ID Bank 1 | . . . 1 Branch Access Points 1 | . 1 . . Emergency Access Points 2 | . 2 . . Locate Traps 2 | . 2 . . Recall Reinforcements 1 | . 1 . . Zone Layout 1 | . . . 1 Fabricator Hacks . | . . . . Repair Station Hacks 1 | . . . 1 Scan Component 1 | . . . 1 Recycling Unit Hacks . | . . . . Scanalyzer 14 | . . . 14 Insert Component 5 | . . . 5 Analyze 9 | . . . 9 Garrison Access Hacks . | . . . . Unauthorized Hacks . | . . . . Terminals . | . . . . Fabricators . | . . . . Repair Stations . | . . . . Recycling Units . | . . . . Scanalyzers . | . . . . Garrison Access . | . . . . Data Cores Recovered . | . . . . Used . | . . . . Hacking Detections 8 | . 4 . 4 Full Trace Events 4 | . 1 . 3 Feedback Events . | . . . . Feedback Blocked . | . . . . Robot Schematics Acquired . | . . . . Robots Built . | . . . . Authchips . | . . . . Time . | . . . . Total Robot Build Rating . | . . . . Part Schematics Acquired 5 | . . . 5 Parts Built . | . . . . Authchips . | . . . . Time . | . . . . Total Part Build Rating . | . . . . Parts Repaired . | . . . . Time . | . . . . Parts Recycled . | . . . . Recycled Matter . | . . . . Retrieved Matter . | . . . . Retrieved Components . | . . . . Parts Scanalyzed 5 | . . . 5 Part Schematics Acquired 5 | . . . 5 Parts Damaged . | . . . . Bothacking | -11 -10 -10 -8 ------------ Run | Yrd Mat Sub Mat Used RIF Installer . | . . . . Robots Hacked . | . . . . Non-combat . | . . . . Combat . | . . . . Robot Hacks Applied . | . . . . Relay Couplers Released . | . . . . Fabnet Peak Effective % . | . . . . Robots Rewired . | . . . . Allies Hacked . | . . . . Hacks Repelled . | . . . . Allies | -11 -10 -10 -8 -------- Run | Yrd Mat Sub Mat Total Allies . | . . . . Largest Group . | . . . . Highest-Rated Group . | . . . . Highest-Rated Ally . | . . . . Total Orders . | . . . . Ally Attacks . | . . . . Total Damage . | . . . . Kills . | . . . . Allies Corrupted . | . . . . Allies Melted . | . . . . Intel | -11 -10 -10 -8 ------- Run | Yrd Mat Sub Mat Robot Analysis Total . | . . . . Derelict Logs Recovered 1 | . . 1 . Drone Launches . | . . . . Drone Recoveries . | . . . . Exploration | -11 -10 -10 -8 ------------- Run | Yrd Mat Sub Mat Turns Passed 4159 | 32 1575 425 2127 Spaces Moved 2237 | 28 657 303 1249 Core 14 | 7 . 5 2 Treads . | . . . . Legs . | . . . . Wheels 2222 | 21 657 298 1246 Hover . | . . . . Flight 1 | . . . 1 Fastest Speed 50 | 50 80 80 105 Average Speed 105 | 83 92 97 113 Slowest Speed 950 | 100 200 250 950 Overloaded Moves . | . . . . Propulsion Burnouts . | . . . . Robots Hopped . | . . . . Cave-ins Triggered . | . . . . Exploration Rate (%) 53 | 3 98 23 88 Regions Visited 3 Branch Regions 1 Pre-discovered Areas . | . . . . Known Exits Taken . | . . . . Unknown Exits Taken 3 | 1 1 1 . Scrap Searched 2 | . . 2 . Spaces Dug . | . . . . Terrain Destroyed 62 | . 2 . 60 Melee . | . . . . Projectile 5 | . 2 . 3 AOE 57 | . . . 57 Terrain Rammed . | . . . . Walls Destroyed . | . . . . Machines Disabled . | . . . . Actions | -11 -10 -10 -8 --------- Run | Yrd Mat Sub Mat Total 3609 | 33 1507 380 1689 Wait 954 | . 760 31 163 Move 2234 | 27 656 302 1249 Hop . | . . . . Pick Up 48 | . 13 6 29 Fast Attach 28 | 6 4 2 16 Attach 18 | . 3 3 12 Detach 2 | . 1 . 1 Swap 44 | . 5 2 37 Drop 54 | . 3 5 46 Fire 227 | . 62 29 136 Melee . | . . . . Ram . | . . . . Kick . | . . . . Crush . | . . . . Escape Stasis . | . . . . Rewire . | . . . . Trap . | . . . . Miscellaneous . | . . . . Route ------- -11/Scrapyard -10/Materials (discovered 5 exits: [*Mat x3] / *Min / [*Sub]) -10/Subcaves -8/Materials (discovered 3 exits: [*Fac x3]) History --------- Turn | Location | Event 9 | -11/Scrapyard | Discovered new exit (range 16) 33 | -11/Scrapyard | Entered Materials 108 | -10/Materials | Identified exit to Mines 237 | -10/Materials | Discovered new exit (range 5) 570 | -10/Materials | Build established: Scavenger-Mutant 636 | -10/Materials | Discovered new exit (range 6) 793 | -10/Materials | Discovered new exit (range 16) 1599 | -10/Materials | Discovered new exit (range 7) 1608 | -10/Materials | Entered Subcaves 1710 | -10/Subcaves | Core integrity fell below 50% 1898 | -10/Subcaves | Lost 4 parts (1p2n1w) 1910 | -10/Subcaves | Learned Materials emergency access door positions 1951 | -10/Subcaves | Disturbed a concealed Subdweller 2027 | -10/Subcaves | Discovered new exit (range 6) 2033 | -10/Subcaves | Entered Materials 2033 | -8/Materials | Evolved 4 slots: Power x1, Utility x2, Weapon x1 2334 | -8/Materials | Discovered new exit (range 3) 2654 | -8/Materials | Build established: Tank 3152 | -8/Materials | Build established: Scavenger-Tank 3425 | -8/Materials | Lost 5 parts (2p1n2u) 3495 | -8/Materials | Discovered new exit (range 10) 4033 | -8/Materials | First assault squad dispatched 4042 | -8/Materials | Discovered new exit (range 8) 4094 | -8/Materials | Build established: Tank 4114 | -8/Materials | Core integrity fell below 50% 4158 | -8/Materials | Core integrity fell below 20% 4161 | -8/Materials | Core destroyed Last Messages --------------- 04154_ Power failure averted by Cryofiber Web. 04154_ Imp. Propulsion Shielding destroyed. 04154_ Wheel destroyed. 04155_ Power failure averted by Cryofiber Web. 04155_ Lgt. Nuclear Core broken. 04155_ Overheating: Short circuit. 04155_ Broken Lgt. Nuclear Core destroyed. 04155_ T-07 Excavator is excavating. 04156_ Critical hit (Burn: +37). 04156_ Hvy. Particle Gun destroyed. 04156_ U-05 Engineer lays Concrete. 04157_ Overheating: Core damaged (-66). 04157_ U-05 Engineer lays Concrete. 04158_ Overheating: Hvy. Particle Gun damaged (-13). 04158_ Overheating: Lrg. Storage Unit damaged (-84). 04158_ Overheating: Cryofiber Web damaged (-9). 04158_ Hvy. Particle Gun destroyed. 04158_ U-05 Engineer lays Concrete. 04159_ T-07 Excavator is excavating. 04161_ Overheating: Core damaged (-93). Map ----- +----------------------------------------------------+ | # #???# ! ! #" # =%= | | # """ =#???# < + # %=[ | | # "T" #???#^ ^ !!! # # != "" | | # [#???#### ## !%!*# =########% "T | | # = = #??????# ?##=!=##? ????????# ! | | # [#??????# #?# #??""" ???????# %= | | ########??????#^ #?# #???"" #??????# = = | | ??????????????# #?# ##???? #??????# =* | | ??????????????# #?# +????????????# ! | | ???????? ?????# #?# ##????????????# = | | ????????"""??## ### "%#?????????????# = | | ????????"""" # = ###"##?????????????######### | | ????????"""" + % ###/#??????????????????##### | | ?????????????# [ + T%#??????????????????? | | ?????????????# # #???????????????????? | | ?????????????## ## !#????????????????????? | | ??????????????# ## #?????????????????????"" | | ????????+?????# ## #???#########?????????"" | | ??????????????# ## [#?? #?????????"" | | ?????????????## ## #?? #???????????" | | ?????????????# ##/### #???????????" | | ????????+????# # #??????????## | | ?????????????# + ]] #??????????# | | ?????????????# ####k# ]| #??????????# | | ?????????????## #####%# ]! #??????????# | | ??????????????# #g /@%#? #??????????# | | ?????????? tu /ggl=%#?##/######??????????# | | ?????????# # # """ #??? #???????????????# | | ??????????????# # """g#????#?????########### | | ?????????????????# """ #??????????# # | | ?????????????????# g b#??????????# # | | ?????????????????# ] #??????????# # | | ?????????????????#####Y#??????????# + | | ?????????????????????? #??????????# # | | ?????????????????????? #??????????# # | | ?????????????????????? ??????????# # | | ?????????????????????? ???????????# ## | | ??????????????????????????????????###########? | | ?????????????????????????????????????????????? | | ?????????????????????????????????????????????? | | ?????????????????????????????????????????????? | | ?????????????????????????????????????????????? | | ?????????????????????????????????????????????? | | ?????????????????????????????????????????????? | | ?????????????????????????????????????????????? | | ?????????????????????????????????????????????? | | ?????????????????????????????????????????????? | | ?????????????????????????????????????????????? | | | | | +----------------------------------------------------+ Best States ------------- Heat Dissipation 64 Energy Generation 25 Energy Capacity 615 Matter Stores 434 Matter Capacity 500 Sight Range 16 Terrain Scan Density 10 Base Temperature (-) 100 Armor Coverage 225 Propulsion Shielding 66 Evasion (%) 44 Targeting Accuracy 8 Item Schematics ----------------- Huge Storage Unit | -8/Materials | Scanalyzed Imp. Heat Sink | -8/Materials | Scanalyzed Wheel | -8/Materials | Scanalyzed Adv. Targeting Computer | -8/Materials | Scanalyzed Hardlight Generator | -8/Materials | Scanalyzed Robot Schematics ------------------ None Fabricated ------------ Nothing Alien Tech Used ----------------- None Achievements -------------- None Challenges ------------ None Game ------ Seed RainbowPlatingVibroblade Manual? 0 Play Time 00:45:11 Cumulative 275.7 hours Start 2024.04.22 @ 17:11:14 End 2024.04.22 @ 17:52:11 Sessions 1 Manual Loads 0 Difficulty Rogue Special Mode None Game No. 219 Rogue 207 Adventurer 12 Explorer 0 Win Type - Total 1 Types 1/0/0/0/0/0/0/0/0 Lore% 33 Gallery% 51 Achievement% 37 Wizard Run 0 Options --------- Layout 1 ASCII 0 Keyboard 0 Movement Mouse Keybinds 0 Fullscreen 1 Font 32/SmallcapsGlow Map View 77x35 Zoom Use 0% Tactical HUD 1 Map Filters NONE Filters NONE Steam 1 RUN: c16a223e-293c-4b4d-96dc-1bef176f1904